[Event "Gonzaga Classic Masters 2020"]
[Site "Dublin/"]
[Date "2020.01.26"]
[Round "4.13"]
[White "Burke, Kevin A."]
[Black "Jackson, Carl"]
[Result "1-0"]
[ECO "B22"]
[WhiteElo "1851"]
[BlackElo "2074"]
[Annotator "NA"]
[PlyCount "83"]
[EventDate "2020.01.24"]
[EventType "swiss"]
[EventCountry "IRL"]
[SourceTitle "playchess.com"]
[Source "ChessBase"]
[SourceQuality "1"]
[TimeControl "5400+30"]

1. e4 {[%emt 1:30:30]} c5 {[%emt 1:30:30]} 2. c3 {[%emt 0:00:30]} d5 {[%emt 0:00:30]} 3. exd5 {[%emt 0:00:30]} Qxd5 {[%emt 0:00:30]} 4. d4 {[%emt 0:00:30]} Nc6 {[%emt 0:00:30]} 5. Nf3 {[%emt 0:00:30]} Bf5 {[%emt 0:00:30]} 6. dxc5 {[%emt 0:00:30]} Qxd1+ {[%emt 0:00:30]} 7. Kxd1 {[%emt 0:00:30]} Nf6 {[%emt 0:00:30]} 8. Bc4 {[%emt 0:00:30]} e6 {[%emt 0:00:30]} 9. b4 {[%emt 0:00:30]} Be7 {[%emt 0:00:30]} 10. Nbd2 {[%emt 0:00:30]} O-O {[%emt 0:00:30]} 11. a4 {[%emt 0:00:30]} Ng4 {[%emt 0:00:30]} (11... Rfd8 $15 12. Ke1 Nd5) 12. Ke2 {[%emt 0:00:30]} Bf6 {[%emt 0:00:30]} 13. Ra3 $11 {[%emt 0:00:30]} Rfd8 {[%emt 0:00:30]} 14. Ne1 {[%emt 0:00:30]} a6 {[%emt 0:00:30]} 15. f4 {[%emt 0:00:30]} g5 {[%emt 0:00:30]} 16. h3 {[%emt 0:00:30]} Nh6 {[%emt 0:00:30]} 17. g4 {[%emt 0:00:30]} Nxg4 {[%emt 0:00:30]} 18. hxg4 {[%emt 0:00:30]} Bxg4+ {[%emt 0:00:30]} 19. Ke3 {[%emt 0:00:30]} gxf4+ {[%emt 0:00:30]} 20. Kxf4 {[%emt 0:00:30]} h5 {[%emt 0:00:30]} 21. Ne4 {[%emt 0:00:30]} Bg7 {[%emt 0:00:30]} 22. Nd3 {[%emt 0:00:30]} Ne7 {[%emt 0:00:30]} 23. Ndf2 {[%emt 0:00:30]} Ng6+ {[%emt 0:00:30]} 24. Kg5 {[%emt 0:00:30]} Ne5 {[%emt 0:00:30]} 25. Nxg4 {[%emt 0:00:30]} hxg4 {[%emt 0:00:30]} 26. Bb3 {[%emt 0:00:30]} Rd3 {[%emt 0:00:30]} 27. Bf4 {[%emt 0:00:30]} Rh3 {[%emt 0:00:30]} 28. Rxh3 {[%emt 0:00:30]} gxh3 {[%emt 0:00:30]} 29. Ra2 {[%emt 0:00:30]} Nd3 {[%emt 0:00:30]} 30. Bh2 {[%emt 0:00:30]} Nc1 {[%emt 0:00:30]} 31. Rb2 {[%emt 0:00:30]} Nxb3 {[%emt 0:00:30]} 32. Rxb3 {[%emt 0:00:30]} Rd8 {[%emt 0:00:30]} 33. Nd6 {[%emt 0:00:30]} Bf8 {[%emt 0:00:30]} 34. c4 {[%emt 0:00:30]} f5 {[%emt 0:00:30]} 35. Rg3 {[%emt 0:00:30]} Bxd6 {[%emt 0:00:30]} 36. cxd6 {[%emt 0:00:30]} Rxd6 {[%emt 0:00:30]} 37. Kf6+ {[%emt 0:00:30]} Kf8 {[%emt 0:00:30]} 38. Rxh3 {[%emt 0:00:30]} e5+ {[%emt 0:00:30]} 39. Kxe5 {[%emt 0:00:30]} Rd2 {[%emt 0:00:30]} 40. Ke6 {[%emt 0:00:30]} f4 {[%emt 0:00:30]} 41. Bxf4 {[%emt 0:00:30]} Rf2 {[%emt 0:00:30]} 42. Be5 {[%emt 0:00:30]} 1-0

[Event "Gonzaga Classic Masters 2020"]
[Site "Dublin/"]
[Date "2020.01.26"]
[Round "4.14"]
[White "Manojlovic, Mihailo"]
[Black "Venkatesan, Kavin"]
[Result "0-1"]
[ECO "B22"]
[WhiteElo "2011"]
[BlackElo "1815"]
[Annotator "NA"]
[PlyCount "58"]
[EventDate "2020.01.24"]
[EventType "swiss"]
[EventCountry "IRL"]
[SourceTitle "playchess.com"]
[Source "ChessBase"]
[SourceQuality "1"]
[TimeControl "5400+30"]

1. e4 {[%emt 0:00:00]} c5 {[%emt 0:00:00]} 2. c3 {[%emt 0:00:00]} d5 {[%emt 0:00:00]} 3. exd5 {[%emt 0:00:00]} Nf6 {[%emt 0:00:16]} 4. d4 {[%emt 0:00:00]} Nxd5 {[%emt 0:00:24]} 5. Nf3 {[%emt 0:00:03]} e6 {[%emt 0:00:46]} 6. Bd3 {[%emt 0:00:57]} cxd4 {[%emt 0:00:17]} 7. cxd4 {[%emt 0:00:07]} Bb4+ {[%emt 0:00:09]} 8. Nbd2 {[%emt 0:01:41]} O-O {[%emt 0:02:41]} 9. O-O {[%emt 0:00:20]} Nc6 {[%emt 0:00:39]} 10. Nc4 {[%emt 0:03:12]} a6 {[%emt 0:10:48]} 11. Qe2 {[%emt 0:02:17]} Nce7 {[%emt 0:03:07]} 12. Bg5 {[%emt 0:26:28]} f6 {[%emt 0:02:13]} 13. Qe4 $11 {[%emt 0:17:16]} (13. a3 $5 {[%cal Ra3b4]}) 13... Ng6 {[%emt 0:02:56]} 14. Bd2 {[%emt 0:05:00]} Bxd2 {[%emt 0:01:03]} 15. Ncxd2 {[%emt 0:00:18]} f5 {[%emt 0:02:12]} 16. Qe1 {[%emt 0:00:06]} b5 {[%emt 0:09:10]} 17. Nb3 {[%emt 0:02:51]} Ndf4 {[%emt 0:01:22]} 18. Qe3 {[%emt 0:01:48]} Bb7 {[%emt 0:02:58]} 19. Nc5 {[%emt 0:02:21]} Bd5 {[%emt 0:00:20]} 20. g3 {[%emt 0:09:24]} Nh3+ {[%emt 0:01:17]} 21. Kg2 {[%emt 0:00:47]} Ng5 {[%emt 0:00:09]} 22. Be2 {[%emt 0:00:15]} f4 {[%emt 0:00:14]} 23. Qd3 {[%emt 0:04:46]} e5 {[%emt 0:06:45]} 24. Qd1 {[%emt 0:07:14]} e4 {[%emt 0:02:55]} 25. Nxg5 {[%emt 0:00:28]} f3+ {[%emt 0:00:17]} 26. Nxf3 {[%emt 0:02:23]} exf3+ {[%emt 0:00:09]} 27. Kg1 {[%emt 0:00:05]} fxe2 {[%emt 0:00:28]} 28. Qxe2 {[%emt 0:00:02]} Bc4 {[%emt 0:00:52]} 29. Nd3 {[%emt 0:00:09]} Qxd4 {[%emt 0:00:10]} 0-1

[Event "Gonzaga Classic Masters 2020"]
[Site "Dublin/"]
[Date "2020.01.26"]
[Round "4.15"]
[White "Putar, Leon"]
[Black "Fox, Anthony"]
[Result "0-1"]
[ECO "C90"]
[WhiteElo "1845"]
[BlackElo "2003"]
[Annotator "NA"]
[PlyCount "134"]
[EventDate "2020.01.24"]
[EventType "swiss"]
[EventCountry "IRL"]
[SourceTitle "playchess.com"]
[Source "ChessBase"]
[SourceQuality "1"]
[TimeControl "5400+30"]

1. e4 {[%emt 0:00:00]} e5 {[%emt 0:00:00]} 2. Nf3 {[%emt 0:00:00]} Nc6 {[%emt 0:00:00]} 3. Bc4 {[%emt 0:00:09]} Nf6 {[%emt 0:00:00]} 4. d3 {[%emt 0:00:13]} Be7 {[%emt 0:00:16]} 5. c3 {[%emt 0:00:14]} O-O {[%emt 0:00:29]} 6. O-O {[%emt 0:00:34]} d6 {[%emt 0:00:40]} 7. h3 {[%emt 0:01:56]} Na5 {[%emt 0:00:14]} 8. Bb5 {[%emt 0:00:40]} a6 {[%emt 0:00:47]} 9. Ba4 {[%emt 0:00:50]} b5 {[%emt 0:00:45]} 10. Bc2 {[%emt 0:00:06]} c5 {[%emt 0:00:19]} 11. Re1 {[%emt 0:01:24]} Re8 {[%emt 0:02:01]} 12. Nbd2 {[%emt 0:00:57]} g6 {[%emt 0:02:24]} 13. Nf1 {[%emt 0:02:04]} Bf8 {[%emt 0:00:33]} 14. Bg5 {[%emt 0:00:31]} h6 {[%emt 0:00:11] C90: Closed Ruy Lopez with 7...d6: Early deviations} 15. Bh4 {[%emt 0:00:24]} (15. Bxf6 Qxf6 16. Ne3 Be6 17. Qd2 Nc6 18. Bb3 Bg7 19. Bd5 Rac8 20. a4 Ne7 21. Bb7 Rb8 22. Bxa6 bxa4 23. Rxa4 Bxh3 {0-1 (61) Guerra Tulcan,L (2421)-Granda Zuniga,J (2640) Quito 2012}) 15... Be7 $146 {[%emt 0:02:53]} ({Predecessor:} 15... Bg7 16. Ne3 Be6 17. d4 Qc7 18. Qd2 Nh5 19. d5 Bd7 20. b3 Nb7 21. a4 Na5 22. b4 cxb4 23. cxb4 {1-0 (48) Ostrovskiy,A (2444)-Becker,D (2275) Neustadt an der Weinstrasse 2017}) 16. Bxf6 {[%emt 0:03:22]} Bxf6 {[%emt 0:00:12]} 17. Ne3 {[%emt 0:01:00]} Be6 {[%emt 0:02:43]} 18. Nd5 {[%emt 0:01:49]} Bxd5 {[%emt 0:04:03]} 19. exd5 {[%emt 0:00:07]} Bg7 {[%emt 0:03:29]} 20. Qd2 $11 {[%emt 0:03:42]} Nb7 {[%emt 0:10:58]} 21. Kf1 {[%emt 0:07:01]} Kh7 {[%emt 0:03:44]} 22. Re2 {[%emt 0:03:38]} f5 {[%emt 0:07:34]} 23. Rae1 {[%emt 0:02:22]} Qf6 {[%emt 0:03:29]} 24. Nh2 {[%emt 0:01:12]} Qf7 {[%emt 0:01:15]} 25. c4 {[%emt 0:01:40]} Rab8 {[%emt 0:05:17]} 26. f4 {[%emt 0:02:09]} exf4 {[%emt 0:02:53]} 27. Qxf4 {[%emt 0:00:15]} Be5 {[%emt 0:08:34]} 28. Qh4 {[%emt 0:11:50]} g5 {[%emt 0:00:39]} 29. Qf2 {[%emt 0:00:14]} Bxh2 {[%emt 0:02:58]} 30. d4 {[%emt 0:00:37]} Rxe2 {[%emt 0:11:00]} 31. Rxe2 {[%emt 0:00:21]} Kg7 {[%emt 0:00:37]} 32. Qe1 {[%emt 0:04:29]} Kf8 {[%emt 0:02:08]} 33. dxc5 {[%emt 0:01:40]} Nxc5 {[%emt 0:01:11]} 34. b4 {[%emt 0:00:14]} Nd7 {[%emt 0:02:31]} 35. Re6 {[%emt 0:00:22]} Re8 {[%emt 0:01:38]} 36. g3 {[%emt 0:00:40]} Ne5 {[%emt 0:01:47]} 37. Rxh6 {[%emt 0:06:41]} Kg7 {[%emt 0:03:27]} 38. Rxd6 {[%emt 0:00:31]} bxc4 {[%emt 0:05:10]} 39. Qd2 {[%emt 0:10:15]} Qh5 {[%emt 0:01:10]} 40. Kg2 {[%emt 0:00:47]} Bxg3 {[%emt 0:00:55]} 41. Qe3 {[%emt 0:13:02]} Bf4 {[%emt 0:00:41]} 42. Qf2 {[%emt 0:00:37]} Nf7 {[%emt 0:01:54]} 43. Re6 {[%emt 0:00:39]} Rxe6 {[%emt 0:03:26]} 44. dxe6 {[%emt 0:20:42]} Ne5 {[%emt 0:00:11]} 45. a4 {[%emt 0:00:00]} Kf6 {[%emt 0:00:16]} 46. b5 {[%emt 0:00:00]} axb5 {[%emt 0:00:05]} 47. axb5 {[%emt 0:00:00]} Qh4 {[%emt 0:00:34]} 48. Qa7 {[%emt 0:00:00]} Qg3+ {[%emt 0:00:15]} 49. Kf1 {[%emt 0:00:00]} Qxh3+ {[%emt 0:00:27]} 50. Ke2 {[%emt 0:00:00]} Qf3+ {[%emt 0:00:14]} 51. Ke1 {[%emt 0:00:00]} Qe3+ {[%emt 0:00:19]} 52. Qxe3 {[%emt 0:00:00]} Bxe3 {[%emt 0:00:04]} 53. Bxf5 {[%emt 0:00:00]} Bc5 {[%emt 0:00:22]} 54. Be4 {[%emt 0:00:00]} Kxe6 {[%emt 0:00:13]} 55. Ke2 {[%emt 0:00:00]} Nd7 {[%emt 0:00:19]} 56. Bc6 {[%emt 0:00:00]} Nb6 {[%emt 0:00:22]} 57. Bg2 {[%emt 0:00:00]} Ke5 {[%emt 0:00:07]} 58. Kf3 {[%emt 0:00:00]} Kd4 {[%emt 0:00:29]} 59. Ke2 {[%emt 0:00:00]} c3 {[%emt 0:00:26]} 60. Bh3 {[%emt 0:00:00]} Kc4 {[%emt 0:00:26]} 61. Bg2 {[%emt 0:00:00]} Kxb5 {[%emt 0:00:13]} 62. Kd3 {[%emt 0:00:00]} Kb4 {[%emt 0:00:14]} 63. Kc2 {[%emt 0:00:00]} Nc4 {[%emt 0:00:11]} 64. Bc6 {[%emt 0:00:00]} Ne3+ {[%emt 0:01:05]} 65. Kb1 {[%emt 0:00:00]} Kb3 {[%emt 0:00:22]} 66. Be4 {[%emt 0:00:00]} c2+ {[%emt 0:01:05]} 67. Bxc2+ {[%emt 0:00:00]} Nxc2 {[%emt 0:00:07]} 0-1

[Event "Gonzaga Classic Masters 2020"]
[Site "Dublin/"]
[Date "2020.01.26"]
[Round "4.18"]
[White "Boland, Dylan"]
[Black "Nolan, Conor"]
[Result "1-0"]
[ECO "D30"]
[WhiteElo "1836"]
[BlackElo "1922"]
[Annotator "NA"]
[PlyCount "93"]
[EventDate "2020.01.24"]
[EventType "swiss"]
[EventCountry "IRL"]
[SourceTitle "playchess.com"]
[Source "ChessBase"]
[SourceQuality "1"]
[TimeControl "5400+30"]

1. d4 {[%emt 0:00:00]} Nf6 {[%emt 0:00:00]} 2. c4 {[%emt 0:00:00]} e6 {[%emt 0:00:03]} 3. g3 {[%emt 0:00:00]} d5 {[%emt 0:00:20]} 4. Bg2 {[%emt 0:01:30]} h6 {[%emt 0:02:51]} 5. Nf3 {[%emt 0:00:29]} c5 {[%emt 0:01:29]} 6. cxd5 {[%emt 0:06:29]} exd5 {[%emt 0:05:57]} 7. O-O {[%emt 0:00:32]} Nc6 {[%emt 0:02:47]} 8. Nc3 {[%emt 0:02:48]} b6 {[%emt 0:04:36]} 9. Re1 {[%emt 0:11:52]} Bf5 {[%emt 0:08:32]} 10. e4 {[%emt 0:32:57]} dxe4 {[%emt 0:07:59]} 11. d5 {[%emt 0:05:02]} Ne7 {[%emt 0:16:30]} 12. Nh4 {[%emt 0:12:27]} Bg4 {[%emt 0:01:16]} 13. f3 {[%emt 0:06:02]} g5 {[%emt 0:12:30]} 14. fxg4 {[%emt 0:01:22]} gxh4 {[%emt 0:00:07]} 15. Nxe4 {[%emt 0:07:23]} Nxe4 {[%emt 0:00:35]} 16. Bxe4 {[%emt 0:03:05]} Qd7 {[%emt 0:03:25]} 17. Bf5 {[%emt 0:01:52]} Qb5 {[%emt 0:05:16]} 18. a4 {[%emt 0:02:40]} Qb4 {[%emt 0:01:08]} 19. Re4 {[%emt 0:01:51]} c4 {[%emt 0:02:35]} 20. d6 {[%emt 0:00:10]} hxg3 {[%emt 0:01:16]} 21. hxg3 {[%emt 0:00:20]} h5 {[%emt 0:00:10]} 22. Qd5 {[%emt 0:01:21]} Qc5+ {[%emt 0:02:44]} 23. Qxc5 {[%emt 0:00:02]} bxc5 {[%emt 0:00:01]} 24. dxe7 {[%emt 0:00:25]} Bg7 {[%emt 0:00:02]} 25. Rxc4 {[%emt 0:01:16]} Bd4+ {[%emt 0:00:07]} 26. Kg2 {[%emt 0:00:14]} Kxe7 {[%emt 0:00:24]} 27. Bg5+ {[%emt 0:00:28]} f6 {[%emt 0:00:21]} 28. Re1+ {[%emt 0:00:03]} Kf7 {[%emt 0:00:41]} 29. Bf4 {[%emt 0:00:45]} h4 {[%emt 0:02:22]} 30. gxh4 {[%emt 0:00:10]} Rxh4 {[%emt 0:00:15]} 31. Rh1 {[%emt 0:00:36]} Rxh1 {[%emt 0:19:11]} 32. Kxh1 {[%emt 0:00:02]} Bxb2 {[%emt 0:00:00]} 33. Rxc5 {[%emt 0:00:12]} Rh8+ {[%emt 0:00:00]} 34. Kg2 {[%emt 0:00:08]} Re8 {[%emt 0:00:00]} 35. Kf3 {[%emt 0:00:37]} Bd4 {[%emt 0:00:00]} 36. Rc7+ {[%emt 0:00:38]} Kg8 {[%emt 0:00:00]} 37. Rd7 {[%emt 0:00:37]} Bb6 {[%emt 0:00:00]} 38. Rb7 {[%emt 0:01:17]} Re1 {[%emt 0:00:00]} 39. Rb8+ {[%emt 0:01:00]} Kg7 {[%emt 0:00:00]} 40. Rb7+ {[%emt 0:00:13]} Kg8 {[%emt 0:00:00]} 41. Rd7 {[%emt 0:00:36]} Ra1 {[%emt 0:00:00]} 42. Be6+ {[%emt 0:00:24]} Kh8 {[%emt 0:00:00]} 43. Ke4 {[%emt 0:00:57]} Rxa4+ {[%emt 0:00:00]} 44. Kf5 {[%emt 0:00:03]} Rd4 {[%emt 0:00:00]} 45. Rb7 {[%emt 0:00:59]} Rb4 {[%emt 0:00:00]} 46. Kg6 {[%emt 0:00:24]} Bc5 {[%emt 0:00:00]} 47. Rh7# {[%emt 0:00:06]} 1-0

[Event "Gonzaga Classic Masters 2020"]
[Site "Dublin/"]
[Date "2020.01.26"]
[Round "5.6"]
[White "Lalic, Bogdan"]
[Black "Saric, Ante"]
[Result "1/2-1/2"]
[ECO "E11"]
[WhiteElo "2402"]
[BlackElo "2559"]
[Annotator "ChessBase"]
[PlyCount "22"]
[EventDate "2020.01.24"]
[EventType "swiss"]
[EventCountry "IRL"]
[SourceTitle "playchess.com"]
[Source "ChessBase"]
[SourceQuality "1"]
[TimeControl "5400+30"]

1. d4 {[%emt 0:00:00]} e6 {[%emt 0:00:00]} 2. c4 {[%emt 0:00:00]} Nf6 {[%emt 0:00:00]} 3. Nf3 {[%emt 0:00:00]} Bb4+ {[%emt 0:00:00]} 4. Nbd2 {[%emt 0:00:00]} O-O {[%emt 0:00:00]} 5. a3 {[%emt 0:00:00]} Be7 {[%emt 0:00:00]} 6. e4 {[%emt 0:00:01]} d6 {[%emt 0:00:00]} 7. Be2 {[%emt 0:00:06]} c5 {[%emt 0:00:03]} 8. d5 {[%emt 0:00:08]} exd5 {[%emt 0:00:04]} 9. cxd5 {[%emt 0:00:05]} a6 {[%emt 0:00:05]} 10. a4 {[%emt 0:00:10]} Bg4 {[%emt 0:00:03]} 11. O-O {[%emt 0:00:09]} Nbd7 {[%emt 0:00:04]} 1/2-1/2

[Event "Gonzaga Classic Masters 2020"]
[Site "Dublin/"]
[Date "2020.01.26"]
[Round "5.7"]
[White "O`Donnell, Conor"]
[Black "Greet, Andrew N"]
[Result "1-0"]
[ECO "D38"]
[WhiteElo "2307"]
[BlackElo "2425"]
[Annotator "NA"]
[PlyCount "57"]
[EventDate "2020.01.24"]
[EventType "swiss"]
[EventCountry "IRL"]
[SourceTitle "playchess.com"]
[Source "ChessBase"]
[SourceQuality "1"]
[TimeControl "5400+30"]

1. d4 {[%emt 0:00:40]} d5 {[%emt 0:00:00]} 2. c4 {[%emt 0:00:12]} e6 {[%emt 0:00:00]} 3. Nc3 {[%emt 0:00:11]} Bb4 {[%emt 0:00:00]} 4. Qa4+ {[%emt 0:01:50]} Nc6 {[%emt 0:00:00]} 5. Nf3 {[%emt 0:00:06]} Nf6 {[%emt 0:05:06]} 6. e3 {[%emt 0:02:35]} O-O {[%emt 0:00:41]} 7. Bd2 {[%emt 0:01:08]} dxc4 {[%emt 0:01:26]} 8. Bxc4 {[%emt 0:00:17]} Bd6 {[%emt 0:00:17]} 9. Qc2 {[%emt 0:01:11]} e5 {[%emt 0:00:50]} 10. dxe5 {[%emt 0:00:12]} Nxe5 {[%emt 0:00:05]} 11. Nxe5 {[%emt 0:00:14]} Bxe5 {[%emt 0:00:04]} 12. f4 {[%emt 0:00:56]} Bxc3 {[%emt 0:04:41]} 13. Bxc3 {[%emt 0:00:10]} Re8 {[%emt 0:00:53]} 14. O-O {[%emt 0:05:46]} b6 {[%emt 0:13:46]} 15. Rad1 {[%emt 0:13:31]} Qe7 {[%emt 0:00:23]} 16. Bxf6 {[%emt 0:07:32]} gxf6 {[%emt 0:10:57]} 17. Rf3 {[%emt 0:07:45]} Bb7 {[%emt 0:01:35]} 18. Bd5 {[%emt 0:07:37]} Bxd5 {[%emt 0:01:41]} 19. Rxd5 {[%emt 0:00:09]} Qe4 {[%emt 0:01:13]} 20. Qd1 {[%emt 0:03:40]} c5 {[%emt 0:04:45]} 21. Rg3+ {[%emt 0:05:39]} Kf8 {[%emt 0:12:30]} 22. h3 {[%emt 0:01:04]} Rac8 {[%emt 0:01:20]} 23. Kh2 {[%emt 0:39:05]} a5 {[%emt 0:05:04]} 24. Rd7 {[%emt 0:00:00]} Qe6 {[%emt 0:03:15]} 25. Rd6 {[%emt 0:00:00]} Qxa2 {[%emt 0:05:14]} 26. Rxb6 {[%emt 0:00:00]} Re6 {[%emt 0:02:10]} 27. Qg4 {[%emt 0:00:00]} Ke7 {[%emt 0:01:32]} 28. Rb7+ {[%emt 0:00:00]} Kd6 {[%emt 0:00:21]} 29. Qd1+ {[%emt 0:00:00]} 1-0

[Event "Gonzaga Classic Masters 2020"]
[Site "Dublin/"]
[Date "2020.01.26"]
[Round "5.8"]
[White "Margolin, Boris"]
[Black "Daly, Colm"]
[Result "1/2-1/2"]
[ECO "C02"]
[WhiteElo "2396"]
[BlackElo "2238"]
[Annotator "NA"]
[PlyCount "102"]
[EventDate "2020.01.24"]
[EventType "swiss"]
[EventCountry "IRL"]
[SourceTitle "playchess.com"]
[Source "ChessBase"]
[SourceQuality "1"]
[TimeControl "5400+30"]

1. e4 {[%emt 0:00:00]} c5 {[%emt 0:03:15]} 2. Nf3 {[%emt 0:00:46]} e6 {[%emt 0:00:33]} 3. c3 {[%emt 0:01:16]} d5 {[%emt 0:00:32]} 4. e5 {[%emt 0:00:48]} Ne7 {[%emt 0:00:15]} 5. d4 {[%emt 0:01:29]} Nec6 {[%emt 0:00:07]} 6. a3 {[%emt 0:07:15]} a5 {[%emt 0:00:14]} 7. Be3 {[%emt 0:06:09]} Nd7 {[%emt 0:00:22]} 8. Nbd2 {[%emt 0:00:51]} Be7 {[%emt 0:00:10]} 9. Bd3 {[%emt 0:00:42]} cxd4 {[%emt 0:00:57]} 10. cxd4 {[%emt 0:00:05]} Nb6 {[%emt 0:00:06]} 11. O-O {[%emt 0:03:49]} Bd7 {[%emt 0:00:05]} 12. Qe2 {[%emt 0:02:07]} a4 {[%emt 0:00:07]} 13. Rac1 {[%emt 0:00:55]} Na5 {[%emt 0:00:11]} 14. Rc2 {[%emt 0:06:32]} Rc8 {[%emt 0:01:10]} 15. Rxc8 {[%emt 0:08:05]} Bxc8 {[%emt 0:06:10]} 16. Ne1 {[%emt 0:02:11]} h5 {[%emt 0:00:36]} 17. g3 {[%emt 0:01:26]} Bd7 {[%emt 0:00:54]} 18. h4 {[%emt 0:02:32]} Bc6 {[%emt 0:01:23]} 19. Ndf3 {[%emt 0:03:07]} Nbc4 {[%emt 0:00:28]} 20. Ng2 {[%emt 0:04:28]} Qb6 {[%emt 0:04:04]} 21. Rb1 {[%emt 0:01:40]} Bb5 {[%emt 0:07:08]} 22. Bg5 {[%emt 0:08:54]} Bf8 {[%emt 0:06:23]} 23. Bd2 {[%emt 0:06:25]} Nb3 {[%emt 0:00:37]} 24. Bxc4 {[%emt 0:01:59]} Bxc4 {[%emt 0:00:39]} 25. Qe3 {[%emt 0:04:20]} Be7 {[%emt 0:14:49]} 26. Bc3 {[%emt 0:01:11]} g6 {[%emt 0:04:47]} 27. Rd1 {[%emt 0:00:34]} Qb5 {[%emt 0:01:01]} 28. Nf4 {[%emt 0:00:36]} Kd7 {[%emt 0:00:13]} 29. Kg2 {[%emt 0:02:56]} b6 {[%emt 0:00:29]} 30. Nd2 {[%emt 0:01:05]} Nxd2 {[%emt 0:01:03]} 31. Qxd2 {[%emt 0:00:03]} Bf8 {[%emt 0:14:50]} 32. Nh3 {[%emt 0:01:23]} Bh6 {[%emt 0:00:15]} 33. Ng5 {[%emt 0:00:30]} Kc8 {[%emt 0:05:47]} 34. Qf4 {[%emt 0:01:26]} Bxg5 {[%emt 0:00:10]} 35. hxg5 {[%emt 0:00:37]} Qd7 {[%emt 0:00:18]} 36. Qf6 {[%emt 0:01:04]} Re8 {[%emt 0:00:45]} 37. Rh1 {[%emt 0:02:17]} Kb7 {[%emt 0:04:58]} 38. g4 {[%emt 0:01:10]} Ka6 {[%emt 0:06:02]} 39. gxh5 {[%emt 0:00:43]} gxh5 {[%emt 0:00:25]} 40. Rxh5 {[%emt 0:01:08]} Bd3 {[%emt 0:00:06]} 41. Rh6 {[%emt 0:02:09]} Rg8 {[%emt 0:01:53]} 42. Qf4 {[%emt 0:02:18]} Be4+ {[%emt 0:01:21]} 43. f3 {[%emt 0:00:58]} Bf5 {[%emt 0:00:59]} 44. Qe3 {[%emt 0:01:47]} Qb5 {[%emt 0:00:22]} 45. Kf2 {[%emt 0:01:03]} Qc4 {[%emt 0:00:31]} 46. Rh1 {[%emt 0:00:27]} Rc8 {[%emt 0:00:36]} 47. Qe2 {[%emt 0:00:32]} Bd3 {[%emt 0:00:25]} 48. Qd2 {[%emt 0:00:02]} Bg6 {[%emt 0:00:59]} 49. Qe2 {[%emt 0:00:16]} Bd3 {[%emt 0:00:06]} 50. Qe3 {[%emt 0:01:16]} Bg6 {[%emt 0:00:12]} 51. Qe2 {[%emt 0:00:35]} Bd3 {[%emt 0:00:05]} 1/2-1/2

[Event "Gonzaga Classic Masters 2020"]
[Site "Dublin/"]
[Date "2020.01.26"]
[Round "5.9"]
[White "Fox, Anthony"]
[Black "Fitzsimons, David"]
[Result "0-1"]
[ECO "B25"]
[WhiteElo "2003"]
[BlackElo "2317"]
[Annotator "NA"]
[PlyCount "72"]
[EventDate "2020.01.24"]
[EventType "swiss"]
[EventCountry "IRL"]
[SourceTitle "playchess.com"]
[Source "ChessBase"]
[SourceQuality "1"]
[TimeControl "5400+30"]

1. e4 {[%emt 0:00:00]} c5 {[%emt 0:00:00]} 2. Nc3 {[%emt 0:00:00]} Nc6 {[%emt 0:00:00]} 3. g3 {[%emt 0:00:22]} g6 {[%emt 0:00:00]} 4. Bg2 {[%emt 0:00:06]} Bg7 {[%emt 0:00:00]} 5. d3 {[%emt 0:00:19]} d6 {[%emt 0:00:00]} 6. f4 {[%emt 0:00:14]} e6 {[%emt 0:00:33]} 7. Nf3 {[%emt 0:01:20]} Nge7 {[%emt 0:00:08]} 8. O-O {[%emt 0:00:11]} O-O {[%emt 0:00:05]} 9. Be3 {[%emt 0:01:23]} Nd4 {[%emt 0:00:22]} 10. Qd2 {[%emt 0:01:31]} Rb8 {[%emt 0:00:20]} 11. Nd1 {[%emt 0:03:22]} b5 {[%emt 0:01:45]} 12. c3 {[%emt 0:00:54]} Nxf3+ {[%emt 0:00:09]} 13. Bxf3 {[%emt 0:00:11]} b4 {[%emt 0:03:13]} 14. d4 {[%emt 0:02:18]} Ba6 {[%emt 0:01:35]} 15. Re1 {[%emt 0:02:54]} bxc3 {[%emt 0:02:09]} 16. bxc3 {[%emt 0:00:42]} cxd4 {[%emt 0:00:58]} 17. cxd4 {[%emt 0:00:58]} d5 {[%emt 0:00:35]} 18. e5 {[%emt 0:01:40]} Nc6 {[%emt 0:00:21]} 19. Be2 {[%emt 1:21:05]} Qb6 {[%emt 0:02:13]} 20. Bxa6 {[%emt 0:00:00]} Qxa6 {[%emt 0:00:09]} 21. Nf2 {[%emt 0:00:00]} Qa4 {[%emt 0:03:55]} 22. Rab1 {[%emt 0:00:00]} Na5 {[%emt 0:02:09]} 23. Qd1 {[%emt 0:00:00]} Qxd1 {[%emt 0:01:51]} 24. Rexd1 {[%emt 0:00:00]} Nc4 {[%emt 0:00:17]} 25. Rxb8 {[%emt 0:00:00]} Rxb8 {[%emt 0:01:17]} 26. Rd3 {[%emt 0:00:00]} Rb1+ {[%emt 0:02:13]} 27. Kg2 {[%emt 0:00:00]} h5 {[%emt 0:00:51]} 28. Kf3 {[%emt 0:00:00]} Ra1 {[%emt 0:01:01]} 29. h3 {[%emt 0:00:00]} Rxa2 {[%emt 0:00:15]} 30. g4 {[%emt 0:00:00]} hxg4+ {[%emt 0:00:19]} 31. hxg4 {[%emt 0:00:00]} a5 {[%emt 0:00:12]} 32. Nd1 {[%emt 0:00:00]} Bf8 {[%emt 0:01:13]} 33. Nc3 {[%emt 0:00:00]} Rc2 {[%emt 0:00:10]} 34. Na4 {[%emt 0:00:00]} Bb4 {[%emt 0:00:14]} 35. f5 {[%emt 0:00:00]} gxf5 {[%emt 0:00:38]} 36. gxf5 {[%emt 0:00:00]} Ra2 {[%emt 0:00:27]} 0-1